[Event "Junior-SM 2025"]
[Site "Uppsala, Sweden"]
[Date "2025.06.30"]
[Round "3.5"]
[White "Wernber, Hugo"]
[Black "Grahn, Vidar"]
[Result "1-0"]
[TimeControl "90 min for 40 move + 30 min with an increment of 30 sec starting move 1"]
[WhiteTitle "FM"]
[BlackTitle "FM"]
[WhiteFideId "1737511"]
[BlackFideId "1744780"]
[WhiteElo "2247"]
[BlackElo "2239"]

1. f4 {[%clk 01:30:51]} {[%emt 00:00:08]} d5 {[%clk 01:30:51]} {[%emt
00:00:10]} 2. Nf3 {[%clk 01:31:14]} {[%emt 00:00:07]} g6 {[%clk 01:31:13]}
{[%emt 00:00:08]} 3. e3 {[%clk 01:31:38]} {[%emt 00:00:04]} Bg7 {[%clk
01:31:34]} {[%emt 00:00:10]} 4. c4 {[%clk 01:32:02]} {[%emt 00:00:06]} Nf6
{[%clk 01:29:40]} {[%emt 00:02:24]} 5. cxd5 {[%clk 01:32:04]} {[%emt 00:00:28]}
Nxd5 {[%clk 01:28:52]} {[%emt 00:01:18]} 6. d4 {[%clk 01:32:23]} {[%emt
00:00:11]} O-O {[%clk 01:24:00]} {[%emt 00:05:22]} 7. e4 {[%clk 01:32:40]}
{[%emt 00:00:13]} Nb6 {[%clk 01:21:37]} {[%emt 00:02:53]} 8. Be2 {[%clk
01:32:53]} {[%emt 00:00:16]} Bg4 {[%clk 01:19:37]} {[%emt 00:02:29]} 9. e5
{[%clk 01:22:31]} {[%emt 00:10:53]} Nc6 {[%clk 01:17:33]} {[%emt 00:02:34]} 10.
Be3 {[%clk 01:22:23]} {[%emt 00:00:38]} Nd5 {[%clk 01:14:14]} {[%emt 00:03:49]}
11. Bc1 {[%clk 01:16:16]} {[%emt 00:06:36]} e6 {[%clk 01:10:08]} {[%emt
00:04:36]} 12. Nc3 {[%clk 01:12:47]} {[%emt 00:04:00]} Nde7 {[%clk 01:09:37]}
{[%emt 00:01:01]} 13. O-O {[%clk 01:00:19]} {[%emt 00:12:58]} Qd7 {[%clk
01:03:39]} {[%emt 00:06:27]} 14. Be3 {[%clk 00:57:28]} {[%emt 00:03:21]} Nf5
{[%clk 00:58:26]} {[%emt 00:05:42]} 15. Bf2 {[%clk 00:54:11]} {[%emt 00:03:47]}
Rad8 {[%clk 00:49:49]} {[%emt 00:09:08]} 16. Qd3 {[%clk 00:52:18]} {[%emt
00:02:23]} Bxf3 {[%clk 00:45:35]} {[%emt 00:04:44]} 17. Bxf3 {[%clk 00:52:32]}
{[%emt 00:00:15]} Nfxd4 {[%clk 00:43:50]} {[%emt 00:02:16]} 18. Be4 {[%clk
00:45:57]} {[%emt 00:07:04]} Qe7 {[%clk 00:32:13]} {[%emt 00:12:07]} 19. Qc4
{[%clk 00:45:00]} {[%emt 00:01:27]} a6 {[%clk 00:30:56]} {[%emt 00:01:48]} 20.
Bxc6 {[%clk 00:42:15]} {[%emt 00:03:14]} b5 {[%clk 00:14:47]} {[%emt 00:16:39]}
21. Bxb5 {[%clk 00:40:27]} {[%emt 00:02:19]} axb5 {[%clk 00:14:40]} {[%emt
00:00:36]} 22. Nxb5 {[%clk 00:40:46]} {[%emt 00:00:10]} Nxb5 {[%clk 00:13:54]}
{[%emt 00:01:18]} 23. Qxb5 {[%clk 00:40:51]} {[%emt 00:00:24]} Rd5 {[%clk
00:09:49]} {[%emt 00:04:35]} 24. Qc4 {[%clk 00:38:37]} {[%emt 00:02:44]} Rb8
{[%clk 00:09:57]} {[%emt 00:00:22]} 25. a4 {[%clk 00:36:11]} {[%emt 00:02:57]}
Rxb2 {[%clk 00:07:50]} {[%emt 00:02:37]} 26. a5 {[%clk 00:36:14]} {[%emt
00:00:26]} c5 {[%clk 00:07:53]} {[%emt 00:00:27]} 27. a6 {[%clk 00:32:39]}
{[%emt 00:04:05]} Qa7 {[%clk 00:07:37]} {[%emt 00:00:46]} 28. Rfb1 {[%clk
00:31:30]} {[%emt 00:01:39]} Rxb1+ {[%clk 00:07:56]} {[%emt 00:00:12]} 29. Rxb1
{[%clk 00:31:54]} {[%emt 00:00:06]} Bf8 {[%clk 00:08:17]} {[%emt 00:00:09]} 30.
h4 {[%clk 00:29:46]} {[%emt 00:02:37]} Rd7 {[%clk 00:08:05]} {[%emt 00:00:42]}
31. Qa4 {[%clk 00:28:43]} {[%emt 00:01:32]} Rc7 {[%clk 00:06:35]} {[%emt
00:02:01]} 32. Qe8 {[%clk 00:26:17]} {[%emt 00:02:56]} Re7 {[%clk 00:06:31]}
{[%emt 00:00:35]} 33. Qb5 {[%clk 00:23:52]} {[%emt 00:02:54]} Rc7 {[%clk
00:05:17]} {[%emt 00:01:44]} 34. Qe8 {[%clk 00:11:57]} {[%emt 00:12:25]} Re7
{[%clk 00:05:37]} {[%emt 00:00:11]} 35. Qb8 {[%clk 00:09:39]} {[%emt 00:02:47]}
Kg7 {[%clk 00:05:45]} {[%emt 00:00:23]} 36. h5 {[%clk 00:09:58]} {[%emt
00:00:11]} gxh5 {[%clk 00:05:07]} {[%emt 00:01:08]} 37. Qd8 {[%clk 00:04:51]}
{[%emt 00:05:36]} Qd7 {[%clk 00:02:06]} {[%emt 00:03:31]} 38. Qa5 {[%clk
00:03:22]} {[%emt 00:01:59]} Qd3 {[%clk 00:01:36]} {[%emt 00:01:01]} 39. Ra1
{[%clk 00:02:59]} {[%emt 00:00:52]} Ra7 {[%clk 00:01:38]} {[%emt 00:00:27]} 40.
Qb6 {[%clk 00:02:06]} {[%emt 00:01:24]} Ra8 {[%clk 00:00:37]} {[%emt 00:01:32]}
41. a7 {[%clk 00:25:19]} {[%emt 00:07:17]} Qe4 {[%clk 00:29:23]} {[%emt
00:01:42]} 42. Qb8 {[%clk 00:22:40]} {[%emt 00:03:11]} Qc6 {[%clk 00:23:59]}
{[%emt 00:05:54]} 43. Rb1 {[%clk 00:20:48]} {[%emt 00:02:22]} h4 {[%clk
00:19:14]} {[%emt 00:05:15]} 44. Rb7 {[%clk 00:18:58]} {[%emt 00:02:20]} h3
{[%clk 00:19:36]} {[%emt 00:00:07]} 45. gxh3 {[%clk 00:19:19]} {[%emt
00:00:09]} Qf3 {[%clk 00:19:22]} {[%emt 00:00:44]} 46. Qxa8 {[%clk 00:19:29]}
{[%emt 00:00:20]} Qd1+ {[%clk 00:19:45]} {[%emt 00:00:07]} 47. Kh2 {[%clk
00:18:47]} {[%emt 00:01:12]} Qd2 {[%clk 00:20:09]} {[%emt 00:00:07]} 48. Rb2
{[%clk 00:18:30]} {[%emt 00:00:46]} 1-0

[Event "Junior-SM 2025"]
[Site "Uppsala, Sweden"]
[Date "2025.06.30"]
[Round "3.1"]
[White "Frank, Anton"]
[Black "Valcu, Lavinia"]
[Result "0-1"]
[TimeControl "90 min for 40 move + 30 min with an increment of 30 sec starting move 1"]
[WhiteTitle "CM"]
[WhiteFideId "1752383"]
[BlackFideId "1752197"]
[WhiteElo "2183"]
[BlackElo "2127"]

1. e4 {[%clk 01:30:57]} {[%emt 00:00:02]} e5 {[%clk 01:30:51]} {[%emt
00:00:11]} 2. Nf3 {[%clk 01:31:21]} {[%emt 00:00:05]} Nc6 {[%clk 01:31:14]}
{[%emt 00:00:07]} 3. Bc4 {[%clk 01:31:45]} {[%emt 00:00:05]} Nf6 {[%clk
01:31:31]} {[%emt 00:00:14]} 4. d3 {[%clk 01:32:10]} {[%emt 00:00:05]} Bc5
{[%clk 01:31:19]} {[%emt 00:00:43]} 5. Bg5 {[%clk 01:32:25]} {[%emt 00:00:14]}
h6 {[%clk 01:31:04]} {[%emt 00:00:45]} 6. Bh4 {[%clk 01:32:46]} {[%emt
00:00:09]} d6 {[%clk 01:31:09]} {[%emt 00:00:26]} 7. c3 {[%clk 01:32:38]}
{[%emt 00:00:38]} g5 {[%clk 01:27:43]} {[%emt 00:03:56]} 8. Bg3 {[%clk
01:32:58]} {[%emt 00:00:08]} a5 {[%clk 01:26:34]} {[%emt 00:01:40]} 9. Nbd2
{[%clk 01:29:06]} {[%emt 00:04:22]} Bg4 {[%clk 01:20:21]} {[%emt 00:06:44]} 10.
h3 {[%clk 01:17:21]} {[%emt 00:12:14]} Bd7 {[%clk 01:12:21]} {[%emt 00:08:30]}
11. O-O {[%clk 00:55:59]} {[%emt 00:21:51]} Qc8 {[%clk 00:51:02]} {[%emt
00:21:49]} 12. Re1 {[%clk 00:46:39]} {[%emt 00:09:50]} g4 {[%clk 00:46:37]}
{[%emt 00:04:56]} 13. d4 {[%clk 00:36:08]} {[%emt 00:11:00]} exd4 {[%clk
00:45:05]} {[%emt 00:02:02]} 14. e5 {[%clk 00:36:00]} {[%emt 00:00:38]} Nh5
{[%clk 00:44:21]} {[%emt 00:01:14]} 15. exd6+ {[%clk 00:34:28]} {[%emt
00:02:02]} Kf8 {[%clk 00:43:18]} {[%emt 00:01:34]} 16. Ne4 {[%clk 00:29:10]}
{[%emt 00:05:48]} Bb6 {[%clk 00:39:03]} {[%emt 00:04:45]} 17. Bh2 {[%clk
00:20:51]} {[%emt 00:08:49]} f5 {[%clk 00:35:08]} {[%emt 00:04:25]} 18. Ne5
{[%clk 00:04:41]} {[%emt 00:16:39]} fxe4 {[%clk 00:34:16]} {[%emt 00:01:23]} 19.
Ng6+ {[%clk 00:01:15]} {[%emt 00:03:56]} Kg7 {[%clk 00:34:31]} {[%emt
00:00:15]} 20. Nxh8 {[%clk 00:01:09]} {[%emt 00:00:36]} Be6 {[%clk 00:26:33]}
{[%emt 00:08:28]} 21. Bxe6 {[%clk 00:00:35]} {[%emt 00:01:03]} Qxe6 {[%clk
00:27:00]} {[%emt 00:00:04]} 22. Qxg4+ {[%clk 00:00:37]} {[%emt 00:00:28]} Qxg4
{[%clk 00:27:24]} {[%emt 00:00:06]} 23. hxg4 {[%clk 00:01:06]} Nf6 {[%clk
00:27:38]} {[%emt 00:00:16]} 24. cxd4 {[%clk 00:00:56]} {[%emt 00:00:40]} cxd6
{[%clk 00:21:29]} {[%emt 00:06:39]} 25. Bxd6 {[%clk 00:01:19]} {[%emt
00:00:07]} Bxd4 {[%clk 00:21:29]} {[%emt 00:00:30]} 26. Bg3 {[%clk 00:01:12]}
{[%emt 00:00:36]} Rxh8 {[%clk 00:21:17]} {[%emt 00:00:43]} 27. Bh4 {[%clk
00:01:05]} {[%emt 00:00:38]} Re8 {[%clk 00:19:00]} {[%emt 00:02:46]} 28. g5
{[%clk 00:01:06]} {[%emt 00:00:29]} hxg5 {[%clk 00:18:43]} {[%emt 00:00:48]} 29.
Bxg5 {[%clk 00:01:35]} Nb4 {[%clk 00:16:54]} {[%emt 00:02:18]} 30. Rac1 {[%clk
00:00:36]} {[%emt 00:01:29]} Nd3 {[%clk 00:14:18]} {[%emt 00:03:07]} 31. Rc7+
{[%clk 00:00:34]} {[%emt 00:00:31]} Kg6 {[%clk 00:14:42]} {[%emt 00:00:07]} 32.
Bxf6 {[%clk 00:00:34]} {[%emt 00:00:30]} Bxf2+ {[%clk 00:15:02]} {[%emt
00:00:09]} 33. Kf1 {[%clk 00:01:01]} {[%emt 00:00:04]} Bxe1 {[%clk 00:15:16]}
{[%emt 00:00:15]} 34. Bd4 {[%clk 00:01:09]} {[%emt 00:00:22]} b5 {[%clk
00:10:41]} {[%emt 00:05:05]} 35. Rg7+ {[%clk 00:01:01]} {[%emt 00:00:38]} Kh6
{[%clk 00:10:38]} {[%emt 00:00:33]} 36. Rb7 {[%clk 00:01:15]} {[%emt 00:00:16]}
Bf2 {[%clk 00:04:48]} {[%emt 00:06:20]} 37. Rb6+ {[%clk 00:00:53]} {[%emt
00:00:52]} Kh7 {[%clk 00:04:54]} {[%emt 00:00:23]} 38. Rb7+ {[%clk 00:00:57]}
{[%emt 00:00:27]} Kg8 {[%clk 00:05:00]} {[%emt 00:00:23]} 39. Bxf2 {[%clk
00:00:33]} {[%emt 00:00:55]} Rf8 {[%clk 00:05:26]} {[%emt 00:00:03]} 40. Ke2
{[%clk 00:00:32]} {[%emt 00:00:31]} Rxf2+ {[%clk 00:04:54]} {[%emt 00:01:01]}
41. Ke3 {[%clk 00:29:34]} {[%emt 00:01:28]} Rxb2 {[%clk 00:33:23]} {[%emt
00:02:02]} 42. Rb8+ {[%clk 00:29:51]} {[%emt 00:00:13]} Kf7 {[%clk 00:33:29]}
{[%emt 00:00:24]} 43. Kxe4 {[%clk 00:30:12]} {[%emt 00:00:08]} Nf2+ {[%clk
00:30:53]} {[%emt 00:03:05]} 44. Kf5 {[%clk 00:27:43]} {[%emt 00:02:58]} Ke7
{[%clk 00:27:26]} {[%emt 00:03:57]} 45. a4 {[%clk 00:24:44]} {[%emt 00:03:29]}
b4 {[%clk 00:26:35]} {[%emt 00:01:22]} 46. Rb5 {[%clk 00:22:46]} {[%emt
00:02:28]} Nd1 {[%clk 00:21:40]} {[%emt 00:05:25]} 47. Rxa5 {[%clk 00:20:38]}
{[%emt 00:02:38]} Rf2+ {[%clk 00:19:00]} {[%emt 00:03:10]} 48. Ke5 {[%clk
00:17:57]} {[%emt 00:03:11]} b3 {[%clk 00:18:38]} {[%emt 00:00:52]} 49. Ra7+
{[%clk 00:15:30]} {[%emt 00:02:56]} Kd8 {[%clk 00:17:58]} {[%emt 00:01:11]} 50.
Ke6 {[%clk 00:01:39]} {[%emt 00:14:21]} Re2+ {[%clk 00:18:01]} {[%emt
00:00:27]} 51. Kd6 {[%clk 00:02:01]} {[%emt 00:00:08]} Rd2+ {[%clk 00:18:19]}
{[%emt 00:00:11]} 52. Ke6 {[%clk 00:01:58]} {[%emt 00:00:33]} b2 {[%clk
00:18:18]} {[%emt 00:00:31]} 53. Rb7 {[%clk 00:02:24]} {[%emt 00:00:05]} Nc3
{[%clk 00:17:47]} {[%emt 00:01:01]} 54. Rb8+ {[%clk 00:01:54]} {[%emt
00:00:59]} Kc7 {[%clk 00:18:03]} {[%emt 00:00:15]} 55. Rb3 {[%clk 00:02:19]}
{[%emt 00:00:05]} b1=Q {[%clk 00:18:14]} {[%emt 00:00:19]} 56. Rxb1 {[%clk
00:02:44]} {[%emt 00:00:05]} Nxb1 {[%clk 00:18:40]} {[%emt 00:00:04]} 57. g4
{[%clk 00:03:11]} {[%emt 00:00:03]} Rg2 {[%clk 00:18:04]} {[%emt 00:01:06]} 58.
Kf5 {[%clk 00:03:23]} {[%emt 00:00:17]} Nc3 {[%clk 00:18:24]} {[%emt 00:00:11]}
59. g5 {[%clk 00:03:40]} {[%emt 00:00:13]} Ne4 {[%clk 00:18:36]} {[%emt
00:00:18]} 0-1

[Event "Junior-SM 2025"]
[Site "Uppsala, Sweden"]
[Date "2025.06.30"]
[Round "3.2"]
[White "Sandberg, Lucas"]
[Black "Nilsson, Oliver"]
[Result "0-1"]
[TimeControl "90 min for 40 move + 30 min with an increment of 30 sec starting move 1"]
[WhiteFideId "1773712"]
[BlackFideId "1730177"]
[WhiteElo "2243"]
[BlackElo "2129"]

1. d3 {[%clk 01:30:58]} d5 {[%clk 01:30:50]} {[%emt 00:00:11]} 2. Nd2 {[%clk
01:31:21]} {[%emt 00:00:07]} g6 {[%clk 01:31:09]} {[%emt 00:00:11]} 3. g3
{[%clk 01:31:45]} {[%emt 00:00:06]} Bg7 {[%clk 01:31:34]} {[%emt 00:00:04]} 4.
Bg2 {[%clk 01:32:11]} {[%emt 00:00:03]} c5 {[%clk 01:31:50]} {[%emt 00:00:14]}
5. Ngf3 {[%clk 01:32:06]} {[%emt 00:00:35]} Nc6 {[%clk 01:31:51]} {[%emt
00:00:29]} 6. O-O {[%clk 01:32:11]} {[%emt 00:00:24]} Nf6 {[%clk 01:32:13]}
{[%emt 00:00:08]} 7. e4 {[%clk 01:31:42]} {[%emt 00:00:59]} O-O {[%clk
01:32:37]} {[%emt 00:00:07]} 8. Re1 {[%clk 01:32:00]} {[%emt 00:00:11]} e5
{[%clk 01:32:53]} {[%emt 00:00:15]} 9. c3 {[%clk 01:27:24]} {[%emt 00:05:06]}
h6 {[%clk 01:19:33]} {[%emt 00:13:49]} 10. Qc2 {[%clk 01:26:06]} {[%emt
00:01:47]} Re8 {[%clk 01:14:41]} {[%emt 00:05:23]} 11. a4 {[%clk 01:24:08]}
{[%emt 00:02:27]} Be6 {[%clk 00:56:40]} {[%emt 00:18:31]} 12. exd5 {[%clk
01:13:19]} {[%emt 00:11:19]} Bxd5 {[%clk 00:56:46]} {[%emt 00:00:25]} 13. Ne4
{[%clk 01:12:40]} {[%emt 00:01:09]} c4 {[%clk 00:56:01]} {[%emt 00:01:15]} 14.
Nxf6+ {[%clk 01:10:50]} {[%emt 00:02:19]} Qxf6 {[%clk 00:56:14]} {[%emt
00:00:17]} 15. dxc4 {[%clk 01:11:15]} {[%emt 00:00:04]} Bxf3 {[%clk 00:55:56]}
{[%emt 00:00:49]} 0-1

[Event "Junior-SM 2025"]
[Site "Uppsala, Sweden"]
[Date "2025.06.29"]
[Round "2.1"]
[White "Nilsson, Oliver"]
[Black "Frank, Anton"]
[Result "0-1"]
[TimeControl "90 min for 40 move + 30 min with an increment of 30 sec starting move 1"]
[BlackTitle "CM"]
[WhiteFideId "1730177"]
[BlackFideId "1752383"]
[WhiteElo "2129"]
[BlackElo "2183"]

1. e4 {[%clk 01:30:59]} e5 {[%clk 01:30:53]} {[%emt 00:00:07]} 2. Nf3 {[%clk
01:31:11]} {[%emt 00:00:18]} Nc6 {[%clk 01:31:17]} {[%emt 00:00:06]} 3. Bc4
{[%clk 01:31:29]} {[%emt 00:00:12]} Nf6 {[%clk 01:31:41]} {[%emt 00:00:06]} 4.
d4 {[%clk 01:30:46]} {[%emt 00:01:13]} exd4 {[%clk 01:31:57]} {[%emt 00:00:14]}
5. e5 {[%clk 01:31:06]} {[%emt 00:00:11]} d5 {[%clk 01:32:20]} {[%emt
00:00:06]} 6. Bb5 {[%clk 01:31:27]} {[%emt 00:00:09]} Ne4 {[%clk 01:32:43]}
{[%emt 00:00:07]} 7. Nxd4 {[%clk 01:31:46]} {[%emt 00:00:11]} Bd7 {[%clk
01:32:58]} {[%emt 00:00:15]} 8. Bxc6 {[%clk 01:31:53]} {[%emt 00:00:23]} bxc6
{[%clk 01:33:21]} {[%emt 00:00:07]} 9. O-O {[%clk 01:32:18]} {[%emt 00:00:05]}
Bc5 {[%clk 01:33:31]} {[%emt 00:00:20]} 10. f3 {[%clk 01:32:43]} {[%emt
00:00:05]} Ng5 {[%clk 01:33:54]} {[%emt 00:00:06]} 11. f4 {[%clk 01:33:11]}
{[%emt 00:00:03]} Ne6 {[%clk 01:34:14]} {[%emt 00:00:10]} 12. c3 {[%clk
01:30:24]} {[%emt 00:03:18]} g6 {[%clk 01:34:31]} {[%emt 00:00:12]} 13. Kh1
{[%clk 01:23:23]} {[%emt 00:07:31]} Be7 {[%clk 01:33:56]} {[%emt 00:01:04]} 14.
c4 {[%clk 01:16:21]} {[%emt 00:07:33]} dxc4 {[%clk 01:20:07]} {[%emt 00:14:19]}
15. Nc3 {[%clk 01:05:58]} {[%emt 00:10:53]} O-O {[%clk 01:05:34]} {[%emt
00:15:02]} 16. f5 {[%clk 00:28:29]} {[%emt 00:38:01]} Nxd4 {[%clk 00:58:23]}
{[%emt 00:07:40]} 17. f6 {[%clk 00:28:14]} {[%emt 00:00:45]} Bc5 {[%clk
00:45:32]} {[%emt 00:13:21]} 18. Ne4 {[%clk 00:27:56]} {[%emt 00:00:48]} Ne6
{[%clk 00:40:54]} {[%emt 00:05:08]} 19. Qd2 {[%clk 00:26:12]} {[%emt 00:02:14]}
Kh8 {[%clk 00:35:41]} {[%emt 00:05:42]} 20. Qh6 {[%clk 00:25:15]} {[%emt
00:01:27]} Rg8 {[%clk 00:35:14]} {[%emt 00:00:57]} 21. Rf3 {[%clk 00:25:24]}
{[%emt 00:00:22]} g5 {[%clk 00:29:05]} {[%emt 00:06:38]} 22. Rh3 {[%clk
00:22:31]} {[%emt 00:03:23]} Nf8 {[%clk 00:25:46]} {[%emt 00:03:49]} 23. Nxg5
{[%clk 00:22:46]} {[%emt 00:00:15]} Rg6 {[%clk 00:24:02]} {[%emt 00:02:14]} 24.
Nxf7+ {[%clk 00:19:38]} {[%emt 00:03:38]} Kg8 {[%clk 00:24:18]} {[%emt
00:00:13]} 25. Nxd8 {[%clk 00:19:32]} {[%emt 00:00:36]} Rxh6 {[%clk 00:23:53]}
{[%emt 00:00:55]} 26. f7+ {[%clk 00:19:40]} {[%emt 00:00:23]} Kh8 {[%clk
00:23:42]} {[%emt 00:00:41]} 27. Rxh6 {[%clk 00:17:57]} {[%emt 00:02:13]} Rxd8
{[%clk 00:20:10]} {[%emt 00:04:02]} 28. Bg5 {[%clk 00:18:19]} {[%emt 00:00:08]}
Kg7 {[%clk 00:20:34]} {[%emt 00:00:05]} 29. Rf1 {[%clk 00:08:06]} {[%emt
00:10:43]} Rb8 {[%clk 00:11:14]} {[%emt 00:09:50]} 30. Rhf6 {[%clk 00:06:45]}
{[%emt 00:01:52]} Bd4 {[%clk 00:06:10]} {[%emt 00:05:34]} 31. Bh6+ {[%clk
00:04:38]} {[%emt 00:02:37]} Kh8 {[%clk 00:06:37]} {[%emt 00:00:02]} 32. Bxf8
{[%clk 00:02:12]} {[%emt 00:02:57]} Rxf8 {[%clk 00:06:49]} {[%emt 00:00:18]} 33.
e6 {[%clk 00:02:06]} {[%emt 00:00:36]} Bxf6 {[%clk 00:06:21]} {[%emt 00:00:58]}
34. Rxf6 {[%clk 00:01:55]} {[%emt 00:00:41]} Kg7 {[%clk 00:05:56]} {[%emt
00:00:55]} 0-1

[Event "Junior-SM 2025"]
[Site "Uppsala, Sweden"]
[Date "2025.06.29"]
[Round "2.2"]
[White "Valcu, Lavinia"]
[Black "Religa, Marek"]
[Result "1/2-1/2"]
[TimeControl "90 min for 40 move + 30 min with an increment of 30 sec starting move 1"]
[WhiteFideId "1752197"]
[BlackFideId "1750208"]
[WhiteElo "2127"]
[BlackElo "2228"]

1. e4 {[%clk 01:30:52]} {[%emt 00:00:08]} e5 {[%clk 01:30:18]} {[%emt
00:00:43]} 2. Nf3 {[%clk 01:31:11]} {[%emt 00:00:10]} Nc6 {[%clk 01:30:47]}
{[%emt 00:00:02]} 3. Bb5 {[%clk 01:31:25]} {[%emt 00:00:15]} a6 {[%clk
01:30:39]} {[%emt 00:00:38]} 4. Ba4 {[%clk 01:31:49]} {[%emt 00:00:05]} d6
{[%clk 01:30:35]} {[%emt 00:00:34]} 5. O-O {[%clk 01:16:56]} {[%emt 00:15:24]}
Bg4 {[%clk 01:31:02]} {[%emt 00:00:02]} 6. h3 {[%clk 01:09:08]} {[%emt
00:08:18]} h5 {[%clk 01:31:27]} {[%emt 00:00:05]} 7. Bxc6+ {[%clk 00:57:23]}
{[%emt 00:12:16]} bxc6 {[%clk 01:31:56]} {[%emt 00:00:01]} 8. d4 {[%clk
00:56:41]} {[%emt 00:01:11]} Bxf3 {[%clk 01:30:15]} {[%emt 00:02:12]} 9. Qxf3
{[%clk 00:56:40]} {[%emt 00:00:30]} exd4 {[%clk 01:29:14]} {[%emt 00:01:31]} 10.
e5 {[%clk 00:43:58]} {[%emt 00:13:12]} Qd7 {[%clk 01:29:30]} {[%emt 00:00:14]}
11. Bf4 {[%clk 00:43:43]} {[%emt 00:00:45]} d5 {[%clk 01:08:12]} {[%emt
00:21:49]} 12. Qd3 {[%clk 00:31:19]} {[%emt 00:12:53]} c5 {[%clk 01:03:58]}
{[%emt 00:04:44]} 13. c3 {[%clk 00:23:53]} {[%emt 00:07:56]} Ne7 {[%clk
00:54:09]} {[%emt 00:10:20]} 14. cxd4 {[%clk 00:22:52]} {[%emt 00:01:31]} Qf5
{[%clk 00:53:42]} {[%emt 00:00:56]} 15. Qxf5 {[%clk 00:20:25]} {[%emt
00:02:57]} Nxf5 {[%emt 00:00:03]} 16. dxc5 {[%clk 00:20:47]} {[%emt 00:00:06]}
Bxc5 {[%clk 00:52:35]} {[%emt 00:02:07]} 17. Nc3 {[%clk 00:20:26]} {[%emt
00:00:50]} c6 {[%clk 00:51:02]} {[%emt 00:02:04]} 18. Rac1 {[%clk 00:19:52]}
{[%emt 00:01:03]} Ba7 {[%emt 00:02:27]} 19. Rfd1 {[%clk 00:16:13]} {[%emt
00:04:08]} Rg8 {[%clk 00:45:30]} {[%emt 00:04:06]} 20. g4 {[%clk 00:10:29]}
{[%emt 00:06:14]} hxg4 {[%clk 00:43:14]} {[%emt 00:02:47]} 21. hxg4 {[%clk
00:10:53]} {[%emt 00:00:05]} g5 {[%clk 00:38:38]} {[%emt 00:05:05]} 22. Bh2
{[%clk 00:10:37]} {[%emt 00:00:46]} Nh6 {[%clk 00:37:54]} {[%emt 00:01:15]} 23.
Na4 {[%clk 00:09:16]} {[%emt 00:01:51]} Rg6 {[%clk 00:32:06]} {[%emt 00:06:19]}
24. Nc5 {[%clk 00:08:12]} {[%emt 00:01:34]} Nxg4 {[%clk 00:30:51]} {[%emt
00:01:45]} 25. Bg3 {[%clk 00:08:32]} {[%emt 00:00:10]} Nh6 {[%clk 00:27:46]}
{[%emt 00:03:34]} 26. Kg2 {[%clk 00:08:00]} {[%emt 00:01:02]} Bxc5 {[%clk
00:27:44]} {[%emt 00:00:32]} 27. Rxc5 {[%clk 00:08:25]} {[%emt 00:00:05]} Nf5
{[%clk 00:27:07]} {[%emt 00:01:08]} 28. b4 {[%clk 00:07:21]} {[%emt 00:01:33]}
Rb8 {[%clk 00:21:13]} {[%emt 00:06:24]} 29. a3 {[%clk 00:07:15]} {[%emt
00:00:36]} Rb5 {[%clk 00:20:42]} {[%emt 00:01:01]} 30. Rh1 {[%clk 00:05:59]}
{[%emt 00:01:46]} Re6 {[%clk 00:13:29]} {[%emt 00:07:43]} 31. Rh8+ {[%clk
00:05:40]} {[%emt 00:00:49]} Kd7 {[%clk 00:12:56]} {[%emt 00:01:04]} 32. Rc2
{[%clk 00:01:38]} {[%emt 00:04:31]} a5 {[%clk 00:11:30]} {[%emt 00:01:57]} 33.
bxa5 {[%clk 00:01:13]} {[%emt 00:00:54]} Rxa5 {[%clk 00:11:59]} 34. Rb2 {[%clk
00:01:32]} {[%emt 00:00:10]} Rb5 {[%clk 00:10:48]} {[%emt 00:01:42]} 35. Rxb5
{[%clk 00:01:10]} {[%emt 00:00:52]} cxb5 {[%clk 00:11:17]} {[%emt 00:00:01]} 36.
Rb8 {[%clk 00:01:20]} {[%emt 00:00:20]} Kc6 {[%clk 00:09:44]} {[%emt 00:02:03]}
37. Rc8+ {[%clk 00:01:21]} {[%emt 00:00:29]} Kb6 {[%clk 00:10:01]} {[%emt
00:00:13]} 38. Rb8+ {[%clk 00:01:46]} {[%emt 00:00:05]} Kc5 {[%clk 00:09:20]}
{[%emt 00:01:11]} 39. f4 {[%clk 00:01:30]} {[%emt 00:00:45]} Nxg3 {[%clk
00:01:29]} {[%emt 00:08:21]} 40. Kxg3 {[%clk 00:01:54]} {[%emt 00:00:05]} gxf4+
{[%clk 00:01:52]} {[%emt 00:00:08]} 41. Kxf4 {[%clk 00:02:17]} {[%emt
00:00:07]} Ra6 {[%clk 00:08:12]} {[%emt 00:24:11]} 42. Rb7 {[%clk 00:23:25]}
{[%emt 00:09:21]} Rxa3 {[%clk 00:08:25]} {[%emt 00:00:17]} 43. Rxf7 {[%clk
00:23:40]} {[%emt 00:00:14]} Ra1 {[%clk 00:06:05]} {[%emt 00:02:51]} 44. Rc7+
{[%clk 00:08:40]} {[%emt 00:15:30]} Kb6 {[%clk 00:06:19]} {[%emt 00:00:16]} 45.
Rc8 {[%clk 00:08:33]} {[%emt 00:00:37]} Re1 {[%clk 00:04:58]} {[%emt 00:01:51]}
46. Kf5 {[%clk 00:06:43]} {[%emt 00:02:20]} d4 {[%clk 00:05:09]} {[%emt
00:00:18]} 47. e6 {[%clk 00:06:45]} {[%emt 00:00:28]} d3 {[%clk 00:04:53]}
{[%emt 00:00:47]} 48. Rd8 {[%clk 00:06:57]} {[%emt 00:00:18]} Re3 {[%clk
00:05:04]} {[%emt 00:00:19]} 49. Kf6 {[%clk 00:06:06]} {[%emt 00:01:21]} Rf3
{[%clk 00:04:26]} {[%emt 00:01:08]} 50. Kg7 {[%clk 00:05:56]} {[%emt 00:00:40]}
Rg3+ {[%clk 00:04:21]} {[%emt 00:00:34]} 51. Kf7 {[%clk 00:05:59]} {[%emt
00:00:27]} Rf3+ {[%clk 00:04:41]} {[%emt 00:00:10]} 52. Kg7 {[%clk 00:06:24]}
{[%emt 00:00:05]} Rg3+ {[%clk 00:05:02]} {[%emt 00:00:10]} 53. Kf7 {[%clk
00:06:50]} {[%emt 00:00:04]} Rf3+ {[%emt 00:00:02]} 1/2-1/2